[Event "Israeli Championship 2022"]
[Site "Yosiah Arad"]
[Date "2022.12.08"]
[Round "4.6"]
[White "Bronstein, Or"]
[Black "Levitan, Tal"]
[Result "1-0"]
[ECO "A13"]
[WhiteElo "2442"]
[BlackElo "2243"]
[Annotator "TA"]
[PlyCount "107"]
[EventDate "2022.12.05"]
[EventType "swiss"]
[EventCountry "ISR"]
[SourceTitle "playchess.com"]
[Source "ChessBase"]
[SourceQuality "1"]
[TimeControl "40/5400+30:1800+30"]

{[%evp 14,107,37,30,45,40,47,40,50,46,49,38,66,61,98,96,96,64,114,100,108,95,124,119,163,130,144,101,97,100,125,136,165,177,189,191,221,204,208,206,198,205,262,153,165,154,241,238,245,243,803,362,355,348,364,358,361,345,349,351,347,349,364,371,367,366,387,385,385,385,413,412,456,454,448,441,435,430,432,430,421,420,420,374,415,410,398,397,425,362,647,639,29979,29980,29978,29979]} 1. c4 {[%emt 0:00:34]} e6 {[%emt 0:00:06]} 2. g3 {[%emt 0:00:18]} d5 {[%emt 0:00:05]} 3. Bg2 {[%emt 0:00:02]} dxc4 {[%emt 0:00:19]} 4. Qa4+ {[%emt 0:00:18]} Nd7 {[%emt 0:00:05]} 5. Qxc4 {[%emt 0:00:06]} a6 {[%emt 0:00:04]} 6. Qc2 {[%emt 0:00:07]} Ngf6 {[%emt 0:02:20] 6...Rb8 is vanishing.} 7. Nf3 {[%emt 0:00:33]} c5 {[%emt 0:00:57]} 8. Nc3 {[%emt 0:01:40] The modern move.} Ra7 {[%emt 0:04:38] A13: English Opening: 1...e6.} 9. O-O {[%emt 0:02:24]} b6 $1 {[%emt 0:04:49]} 10. d4 {[%emt 0:01:37]} Bb7 {[%emt 0:00:56] White is slightly better.} 11. e4 {[%emt 0:00:37][%cal Od4d5]} cxd4 {[%emt 0:06:13]} 12. Nxd4 {[%emt 0:00:05]} Bc5 {[%emt 0:00:05]} 13. Nb3 {[%emt 0:04:01] [#]} O-O $146 {[%emt 0:04:31]} ({Predecessor:} 13... Be7 14. Rd1 Qb8 15. Bf4 e5 16. Be3 O-O 17. Rac1 Ba8 18. Qe2 Rc8 19. Nd5 Bd8 20. Nxf6+ Nxf6 21. Rxc8 Qxc8 {1-0 (66) Meier,G (2646)-Filippov,A (2615) Tromsoe 2014}) 14. Nxc5 {[%emt 0:03:51]} Nxc5 {[%emt 0:00:02]} 15. Be3 {[%emt 0:02:44]} Qc7 {[%emt 0:06:55]} (15... Qe7 $14) 16. Rac1 $16 {[%emt 0:03:30] Na4 is the strong threat.} Ng4 {[%emt 0:11:44]} 17. Bd2 {[%emt 0:10:11]} f5 {[%emt 0:21:24]} 18. Na4 {[%emt 0:20:42] [#] Hoping for f3.} Bxe4 {[%emt 0:06:03]} 19. Bxe4 {[%emt 0:00:05]} fxe4 {[%emt 0:00:23]} 20. Nxc5 {[%emt 0:15:15]} Qxc5 {[%emt 0:01:31]} 21. Qxe4 {[%emt 0:02:37]} (21. Qxc5 $6 bxc5 22. Rxc5 Raf7 $11) 21... Qh5 {[%emt 0:06:45][%csl Gg4][%cal Rh5h2]} 22. Qxe6+ {[%emt 0:00:03]} Kh8 {[%emt 0:00:07][%csl Gg4][%cal Rh5h2]} 23. h4 {[%emt 0:00:11]} (23. Qxb6 $2 Qxh2#) 23... h6 {[%emt 0:11:35]} 24. Bb4 {[%emt 0:03:13]} (24. Qxb6 $6 Ne5 $14) 24... Re8 {[%emt 0:00:19]} 25. Rc8 {[%emt 0:00:07]} (25. Qxb6 $6 Ne5) 25... Rxc8 {[%emt 0:01:30]} 26. Qxc8+ {[%emt 0:00:02]} Kh7 {[%emt 0:00:02]} 27. Qc2+ {[%emt 0:00:49]} Kh8 {[%emt 0:02:54]} 28. Qe4 {[%emt 0:03:35]} ({White should play} 28. Rd1 $18 {Threatening mate with Rd8+.} Qe8 29. Re1) 28... Nf6 {[%emt 0:01:53]} 29. Qe6 $36 {[%emt 0:00:36][%mdl 2048] White is in control.} Qf3 {[%emt 0:01:43]} (29... Qd5 $16 30. Qc8+ (30. Qxb6 Rb7 $16) 30... Kh7) 30. Bc3 $18 {[%emt 0:07:12]} (30. Qxb6 Rb7 31. Qc5 Rb5 32. Qf8+ Kh7) 30... b5 {[%emt 0:01:30]} 31. Re1 {[%emt 0:01:01]} Ng4 $2 {[%emt 0:01:05]} (31... Kh7 32. Bxf6 Qxf6 33. Qxf6 gxf6) 32. Qc8+ {[%emt 0:03:25]} (32. Bd4 $142 {aiming for Qg6.} Rf7 33. Qg6 (33. Qxa6 Kh7 $18)) 32... Kh7 {[%emt 0:00:05]} 33. Bd4 {[%emt 0:00:10] The board is on fire.} Rf7 {[%emt 0:00:21][%cal Rg4f2]} 34. Qc2+ {[%emt 0:00:03]} (34. Qxa6 $2 {too greedy.} Nxf2 35. Kh2 Qg4 $19) 34... Qf5 {[%emt 0:01:46]} 35. Qxf5+ {[%emt 0:00:05]} Rxf5 {[%emt 0:00:02][%mdl 4096] Endgame KRB-KRN} 36. Re7 {[%emt 0:00:27] Against Rf7} Nf6 {[%emt 0:00:41]} 37. Ra7 {[%emt 0:01:10] Prevents a5.} Kg6 {[%emt 0:00:35]} 38. Rxa6 {[%emt 0:00:29]} Rd5 {[%emt 0:00:06]} 39. Bc3 {[%emt 0:00:16]} Kf5 {[%emt 0:00:20]} 40. Ra7 {[%emt 0:00:35]} Kg6 {[%emt 0:01:31]} 41. Kg2 {[%emt 0:30:26]} h5 {[%emt 0:30:05]} 42. Re7 {[%emt 0:00:36]} Rd6 {[%emt 0:02:16]} 43. Re5 {[%emt 0:05:17]} Rb6 {[%emt 0:00:04]} 44. Bd4 {[%emt 0:00:04]} Rb7 {[%emt 0:00:24]} 45. Rg5+ {[%emt 0:01:18]} Kh6 {[%emt 0:00:30]} 46. Be3 {[%emt 0:00:49]} Kh7 {[%emt 0:00:05]} 47. a3 {[%emt 0:01:03]} Rb8 {[%emt 0:00:00]} 48. b3 {[%emt 0:00:00][%cal Bb2b3,Bb3b4][%mdl 32]} Ra8 {[%emt 0:00:00]} 49. Rxb5 {[%emt 0:00:00] Threatens to win with a4.} Rxa3 {[%emt 0:00:00]} 50. Rb7 {[%emt 0:00:00]} Ra2 {[%emt 0:00:00]} 51. b4 {[%emt 0:00:00]} Ng4 $2 {[%emt 0:00:00]} (51... Rc2 52. b5 Nd5) 52. Bd4 {[%emt 0:00:00]} Rd2 {[%emt 0:00:00]} 53. Rxg7+ {[%emt 0:00:00]} ({Not} 53. Bxg7 Rxf2+ 54. Kg1 Kg6 $16) 53... Kh6 {[%emt 0:00:00] [#]} 54. Rxg4 $1 {[%emt 0:00:00] Weighted Error Value: White=0.24 (precise) /Black=0.40} 1-0

[Event "Israeli Championship 2022"]
[Site "Yosiah Arad"]
[Date "2022.12.08"]
[Round "4.7"]
[White "Shachar, Ehud"]
[Black "Kobo, Ori"]
[Result "0-1"]
[ECO "D02"]
[WhiteElo "2319"]
[BlackElo "2554"]
[Annotator "TA"]
[PlyCount "216"]
[EventDate "2022.12.05"]
[EventType "swiss"]
[EventCountry "ISR"]
[SourceTitle "playchess.com"]
[Source "ChessBase"]
[SourceQuality "1"]
[TimeControl "40/5400+30:1800+30"]

{[%evp 66,216,-135,-139,-124,-258,-257,-301,-298,-249,-276,-270,-231,-353,-284,-349,-345,-320,-313,-313,-313,-306,-304,-472,-313,-313,-313,-427,-427,-420,-420,-409,-372,-444,-248,-241,-240,-517,-517,-517,-517,-500,-493,-255,-255,-255,-255,-248,0,0,0,0,0,0,0,0,0,0,0,0,0,0,0,0,0,0,0,0,0,0,0,0,0,0,0,0,0,0,0,0,0,0,0,0,0,0,0,0,0,0,0,0,0,0,0,0,0,0,0,0,0,0,0,0,0,0,0,0,0,0,0,0,0,0,0,0,0,0,0,0,0,0,0,0,0,0,0,0,0,0,0,0,0,0,0,0,0,0,0,0,0,0,0,-29979,-29980,-29980,-29981,-29981,-29982,-29982,-29983,-29983,-29981]} 1. Nf3 {[%emt 0:00:12]} d5 {[%emt 0:00:30]} 2. g3 {[%emt 0:00:11]} Nc6 {[%emt 0:02:05]} 3. d4 {[%emt 0:05:24]} Bf5 {[%emt 0:00:13]} 4. Bg2 {[%emt 0:00:45]} e6 {[%emt 0:00:58]} 5. O-O {[%emt 0:00:48]} Nb4 {[%emt 0:00:27]} 6. Na3 {[%emt 0:01:46]} Be7 {[%emt 0:01:06]} 7. c3 {[%emt 0:02:03]} Nc6 {[%emt 0:00:18]} 8. Nc2 {[%emt 0:00:58]} h5 {[%emt 0:05:22]} 9. Ne3 {[%emt 0:07:49]} Be4 {[%emt 0:03:27]} 10. Qb3 {[%emt 0:09:27]} Rb8 {[%emt 0:01:24]} 11. Rd1 {[%emt 0:03:59]} b5 {[%emt 0:10:11]} 12. a4 {[%emt 0:11:15]} b4 {[%emt 0:08:51]} 13. a5 {[%emt 0:01:41]} bxc3 {[%emt 0:03:05]} 14. Qxc3 {[%emt 0:04:23]} Nb4 {[%emt 0:00:43]} 15. Ne5 {[%emt 0:06:20]} Nf6 {[%emt 0:01:12]} 16. Bxe4 {[%emt 0:08:09]} Nxe4 {[%emt 0:00:52]} 17. Qb3 {[%emt 0:00:21]} O-O {[%emt 0:05:36]} 18. f3 {[%emt 0:05:25]} Nf6 {[%emt 0:02:17]} 19. Nc2 {[%emt 0:10:28]} Nd7 {[%emt 0:07:03]} 20. Nd3 {[%emt 0:19:06]} Nxd3 {[%emt 0:07:42]} 21. Qxd3 {[%emt 0:00:00]} c5 {[%emt 0:00:15]} 22. Kh1 {[%emt 0:00:00]} Qc8 {[%emt 0:04:16]} 23. Ra2 {[%emt 0:00:00]} c4 {[%emt 0:03:17]} 24. Qe3 {[%emt 0:00:00]} Qb7 {[%emt 0:02:51]} 25. Na1 {[%emt 0:00:00]} Rfe8 {[%emt 0:05:10]} 26. Bd2 {[%emt 0:00:00]} e5 {[%emt 0:00:57]} 27. Bc3 {[%emt 0:00:00]} e4 {[%emt 0:10:34]} 28. fxe4 {[%emt 0:00:00]} Bb4 {[%emt 0:04:45]} 29. a6 {[%emt 0:01:02]} Qc6 {[%emt 0:01:14]} 30. e5 {[%emt 0:00:47]} Nxe5 {[%emt 0:02:47]} 31. dxe5 {[%emt 0:01:24]} d4+ {[%emt 0:00:04]} 32. Qf3 {[%emt 0:00:09]} Qxf3+ {[%emt 0:00:09]} 33. exf3 {[%emt 0:00:06]} dxc3 {[%emt 0:00:08]} 34. bxc3 {[%emt 0:00:22]} Bxc3 {[%emt 0:00:09]} 35. f4 {[%emt 0:01:40]} (35. Rc2 $17 Bxe5 36. Rxc4) 35... Red8 $1 $19 {[%emt 0:03:18]} 36. Rxd8+ {[%emt 0:01:31]} Rxd8 {[%emt 0:00:01]} 37. Kg2 {[%emt 0:00:12]} Rd1 {[%emt 0:02:13]} 38. Nc2 {[%emt 0:00:10]} Rd2+ {[%emt 0:00:13]} 39. Kf3 {[%emt 0:00:18]} (39. Kh3 {was the only chance.}) 39... Rxh2 $19 {[%emt 0:01:49]} 40. Ke4 {[%emt 0:00:40]} Rd2 {[%emt 0:02:13]} 41. Ra4 {[%emt 0:31:19]} Re2+ {[%emt 0:07:03]} (41... Rxc2 $2 {loses.} 42. Rxc4 g5 43. Rc8+ Kg7 44. Kf5 gxf4 45. gxf4) 42. Kf3 {[%emt 0:00:00]} Rxc2 {[%emt 0:00:12]} 43. Rxc4 {[%emt 0:00:00]} Rc1 {[%emt 0:02:18]} 44. Rc8+ {[%emt 0:00:00]} Kh7 {[%emt 0:00:02]} 45. Rc7 {[%emt 0:00:00]} Kg6 {[%emt 0:02:40]} ({Inferior is} 45... Rf1+ 46. Ke2 (46. Kg2 $2 Rc1 $17) 46... Rc1 47. Kf3 $17) 46. Rxa7 {[%emt 0:00:00]} Ra1 {[%emt 0:06:50]} 47. Rc7 {[%emt 0:00:00]} Be1 {[%emt 0:01:17]} 48. a7 {[%emt 0:00:00]} Ra3+ {[%emt 0:03:19]} 49. Ke4 {[%emt 0:00:00]} Bxg3 {[%emt 0:03:40]} (49... Rxg3 50. a8=Q (50. a8=B f5+ 51. exf6 Kxf6 $15) 50... Bf2 51. Qc6+ Kh7 52. Rxf7 Rg6 53. e6 Bh4 54. Qd5) (49... f5+ $142 50. Kd5 Ra5+ 51. Kc6 Bf2) 50. f5+ $19 {[%emt 0:00:00]} Kg5 {[%emt 0:01:47]} 51. Rxf7 $2 {[%emt 0:00:00]} (51. e6 Bxc7 52. e7) 51... Ra4+ $19 {[%emt 0:00:21]} 52. Kd5 {[%emt 0:00:00]} Ra5+ {[%emt 0:00:12]} 53. Ke4 {[%emt 0:00:00]} Bxe5 {[%emt 0:01:42]} 54. a8=Q {[%emt 0:00:00]} (54. a8=R {is a better defense.} Rxa8 55. Kxe5 Re8+ 56. Kd4) 54... Rxa8 $19 {[%emt 0:00:05]} 55. Kxe5 {[%emt 0:00:00]} Re8+ $1 {[%emt 0:00:53]} 56. Kd4 {[%emt 0:00:00] [#]} h4 $2 {[%emt 0:04:00]} (56... Kf4 $1 $19 57. Kd3 h4 58. Rxg7 Kxf5) 57. Rxg7+ $11 {[%emt 0:00:00]} Kxf5 {[%emt 0:00:01]} 58. Rh7 {[%emt 0:00:00]} Kg4 {[%emt 0:00:02]} 59. Rg7+ {[%emt 0:00:00]} Kf3 {[%emt 0:00:22]} 60. Rf7+ $1 {[%emt 0:00:00]} Kg2 {[%emt 0:00:43]} 61. Rg7+ {[%emt 0:00:00]} Kh2 {[%emt 0:02:08]} 62. Kd3 $1 {[%emt 0:00:00]} Re1 {[%emt 0:00:18]} 63. Rh7 {[%emt 0:00:00]} h3 {[%emt 0:01:01]} 64. Kd2 {[%emt 0:00:00]} Rg1 {[%emt 0:01:02]} 65. Ke2 $1 {[%emt 0:00:00]} Rg5 {[%emt 0:00:40]} 66. Kf2 {[%emt 0:00:00]} Rf5+ {[%emt 0:00:08]} 67. Ke2 {[%emt 0:00:00]} Kg3 {[%emt 0:00:56]} 68. Rg7+ {[%emt 0:00:12]} Kh4 {[%emt 0:00:14]} 69. Rh7+ {[%emt 0:00:21]} Kg3 {[%emt 0:00:07]} 70. Rg7+ {[%emt 0:00:05]} Kh2 {[%emt 0:00:24]} 71. Rg8 {[%emt 0:00:22]} Ra5 {[%emt 0:00:41]} 72. Kf1 {[%emt 0:00:35]} Ra1+ {[%emt 0:00:29]} 73. Kf2 {[%emt 0:00:10]} Ra2+ {[%emt 0:00:08]} 74. Kf1 {[%emt 0:00:38]} Rg2 {[%emt 0:00:31]} 75. Rh8 {[%emt 0:00:20]} Rg6 {[%emt 0:00:50]} 76. Kf2 {[%emt 0:00:20]} Rf6+ {[%emt 0:00:18]} 77. Ke2 {[%emt 0:00:10]} Rf7 {[%emt 0:00:33]} 78. Rg8 {[%emt 0:01:50]} Rf4 {[%emt 0:00:20]} 79. Rg7 {[%emt 0:00:23]} Rb4 {[%emt 0:00:26]} 80. Kf2 {[%emt 0:00:14]} Rb2+ {[%emt 0:00:07]} 81. Kf1 {[%emt 0:00:21]} Rg2 {[%emt 0:00:43]} 82. Rh7 {[%emt 0:00:13]} Rg4 {[%emt 0:00:27]} 83. Kf2 {[%emt 0:00:28]} Rg3 {[%emt 0:00:24]} 84. Rh8 $1 {[%emt 0:00:23]} Rg7 {[%emt 0:00:20]} 85. Kf1 {[%emt 0:01:32]} Rf7+ {[%emt 0:00:13]} 86. Ke2 {[%emt 0:00:10]} Rf5 {[%emt 0:00:30]} 87. Rg8 {[%emt 0:00:14]} Ra5 {[%emt 0:00:18]} 88. Kf2 {[%emt 0:00:13]} Ra3 {[%emt 0:00:18]} 89. Rg7 {[%emt 0:00:17]} Ra2+ {[%emt 0:00:44]} 90. Kf1 $1 {[%emt 0:00:12]} Rc2 {[%emt 0:00:10]} 91. Rg8 {[%emt 0:00:11]} Rc5 {[%emt 0:00:53]} 92. Kf2 {[%emt 0:00:13]} Rf5+ {[%emt 0:00:10]} 93. Ke2 {[%emt 0:00:10]} Kh1 {[%emt 0:00:12]} 94. Rg3 {[%emt 0:00:50]} h2 {[%emt 0:01:32]} 95. Rg8 {[%emt 0:00:28]} Ra5 {[%emt 0:00:10]} 96. Kf2 {[%emt 0:00:39]} Ra2+ {[%emt 0:00:18]} 97. Kf1 {[%emt 0:00:12]} Ra1+ {[%emt 0:00:03]} 98. Kf2 {[%emt 0:00:09]} Rg1 {[%emt 0:00:15]} 99. Ra8 {[%emt 0:02:59]} Rg2+ {[%emt 0:00:11]} 100. Kf3 {[%emt 0:00:58]} Rg7 {[%emt 0:00:21]} 101. Ra1+ {[%emt 0:00:50]} Rg1 {[%emt 0:04:13]} 102. Ra8 {[%emt 0:00:14]} Rf1+ {[%emt 0:00:00]} 103. Ke2 {[%emt 0:00:09]} Rb1 {[%emt 0:00:00]} (103... Rc1 $5 104. Kf2 $8 Rd1 $11) 104. Rg8 $2 {[%emt 0:00:15][%mdl 8192] [#]} (104. Kf2 $11) 104... Rg1 $1 {[%emt 0:00:00]} 105. Rh8 {[%emt 0:02:57]} Kg2 {[%emt 0:00:00]} 106. Rg8+ {[%emt 0:00:21]} Kh3 {[%emt 0:00:00]} 107. Rh8+ {[%emt 0:00:20]} Kg3 {[%emt 0:00:00]} 108. Rg8+ {[%emt 0:00:18]} Kf4 {[%emt 0:00:00]} 0-1

[Event "Israeli Championship 2022"]
[Site "Yosiah Arad"]
[Date "2022.12.08"]
[Round "4.8"]
[White "Levin, Guy"]
[Black "Mikhalevski, Victor"]
[Result "1/2-1/2"]
[ECO "A13"]
[WhiteElo "2382"]
[BlackElo "2517"]
[Annotator "TA"]
[PlyCount "83"]
[EventDate "2022.12.05"]
[EventType "swiss"]
[EventCountry "ISR"]
[SourceTitle "playchess.com"]
[Source "ChessBase"]
[SourceQuality "1"]
[TimeControl "40/5400+30:1800+30"]

{[%evp 9,83,11,7,17,18,0,0,0,15,0,0,0,0,0,0,0,0,0,27,22,34,39,53,41,34,36,39,35,46,53,44,25,25,25,17,19,62,59,59,60,62,67,65,67,88,88,88,40,27,27,31,0,84,0,39,0,0,0,0,-46,-58,-114,-159,-194,-171,-181,0,0,0,0,0,0,0,0,0,0]} 1. c4 {[%emt 0:00:04]} Nf6 {[%emt 0:00:47]} 2. g3 {[%emt 0:00:08]} e6 {[%emt 0:00:13]} 3. Bg2 {[%emt 0:00:07]} d5 {[%emt 0:00:05]} 4. Nf3 {[%emt 0:00:04]} Be7 {[%emt 0:00:19]} 5. b3 {[%emt 0:00:26]} d4 {[%emt 0:00:39]} 6. e3 {[%emt 0:00:17] A13: English Opening: 1...e6.} c5 {[%emt 0:00:08]} 7. exd4 {[%emt 0:00:13]} cxd4 {[%emt 0:00:05]} 8. O-O {[%emt 0:00:08]} O-O {[%emt 0:00:08]} 9. Re1 {[%emt 0:00:09]} Nc6 {[%emt 0:00:13]} 10. d3 {[%emt 0:00:20]} Bb4 {[%emt 0:00:39] 10...Re8 gains popularity.} 11. Re2 {[%emt 0:14:41]} a5 {[%emt 0:00:43]} 12. Na3 {[%emt 0:04:25]} e5 {[%emt 0:41:29]} 13. Nb5 {[%emt 0:08:18] [#]} (13. Nxe5 Nxe5 14. Rxe5 Qd6 $15) 13... Re8 $146 {[%emt 0:01:27]} ({Predecessor:} 13... Bg4 14. h3 Bh5 15. g4 Nxg4 16. hxg4 Bxg4 17. Nh2 Bxe2 18. Qxe2 a4 19. a3 axb3 {1-0 (41) Nigalidze,G (2508)-Khukhashvili,S (2341) Tbilisi 2019}) 14. a3 {[%emt 0:08:05] Against h6} Bf8 {[%emt 0:10:26]} 15. Bg5 {[%emt 0:08:17]} Bf5 {[%emt 0:03:06]} 16. Bxf6 {[%emt 0:04:55]} gxf6 {[%emt 0:00:04]} ({Don't play} 16... Qxf6 17. Nc7 $16) 17. Nh4 {[%emt 0:00:43]} Bg6 {[%emt 0:00:13]} 18. Bh3 {[%emt 0:01:13]} Na7 {[%emt 0:23:53]} 19. Nxa7 {[%emt 0:05:33]} Rxa7 {[%emt 0:00:03]} 20. Nf5 {[%emt 0:06:44]} Kh8 {[%emt 0:01:24]} 21. Re1 {[%emt 0:09:00]} Ra6 {[%emt 0:00:30]} 22. a4 {[%emt 0:03:10]} e4 {[%emt 0:03:25]} 23. Rxe4 {[%emt 0:07:23]} Rxe4 {[%emt 0:00:04]} 24. dxe4 {[%emt 0:00:07]} d3 {[%emt 0:00:03]} 25. Qd2 {[%emt 0:02:50]} (25. Bg4 {simplifies} Rb6 26. Kg2 Bxf5 27. Bxf5 h6 28. Rb1) 25... Bb4 {[%emt 0:03:32]} 26. Qh6 {[%emt 0:00:03][%csl Gf5][%cal Rh6g7]} Qg8 {[%emt 0:00:10] Against Qg7+} 27. Rd1 {[%emt 0:01:18]} d2 {[%emt 0:00:23]} 28. Rxd2 {[%emt 0:00:36]} (28. Kg2 $16) 28... Bxd2 $14 {[%emt 0:00:25]} 29. Qxd2 {[%emt 0:00:05] Threatens to win with Nd6.} Qf8 {[%emt 0:01:09] Against Nd6} 30. Qd5 {[%emt 0:03:02]} Rb6 {[%emt 0:01:30]} (30... Bxf5 $11 31. Bxf5 Qe7) 31. Qd4 {[%emt 0:02:10] White is more active.} ({Much weaker is} 31. Qxa5 Rxb3 32. Kg2 Rb4 $11) (31. e5 $1 $16) 31... Re6 {[%emt 0:02:48]} 32. c5 {[%emt 0:03:20]} Bxf5 {[%emt 0:03:00]} 33. Bxf5 $11 {[%emt 0:00:02][%mdl 4096] Endgame KQR-KQB} ({But not} 33. exf5 Re5 34. Bg2 Qxc5 35. Qxc5 Rxc5 36. Bxb7 Rxf5 $17) 33... Rc6 {[%emt 0:00:22][%cal Be6c6,Bc6d6,Bd6d2][%mdl 32]} 34. Qd7 {[%emt 0:00:42]} (34. e5 $11 {might be stronger.}) 34... Kg7 $15 {[%emt 0:00:18]} 35. Qxb7 {[%emt 0:00:43]} (35. Bg4 $1 $15) 35... Qxc5 $17 {[%emt 0:00:05]} 36. Kg2 {[%emt 0:01:18]} Rd6 {[%emt 0:00:57] ( -> ...Rd2)} 37. Qe7 {[%emt 0:02:17][%cal Of5e6] [#] Hoping for Be6!} Qb6 $2 {[%emt 0:02:21]} ({Better is} 37... Rd5 $1 $19 {[%cal Rd5f5][%mdl 512]} 38. Qxc5 Rxc5) 38. e5 $1 $36 {[%emt 0:01:03][%mdl 2048] White is pushing. The position is equal.} Rd2 {[%emt 0:01:32]} 39. exf6+ {[%emt 0:00:45]} Qxf6 {[%emt 0:00:04]} 40. Qe3 {[%emt 0:00:41] Really sharp!} Qd4 {[%emt 0:00:18]} 41. Qf3 {[%emt 0:31:41]} h6 {[%emt 0:02:45]} 42. h4 {[%emt 0:00:00] Weighted Error Value: White=0.12 (very precise) /Black=0.18 (very precise)} 1/2-1/2